Cogmind - Beta 14 @@@ ROGUE MODE // 2024.08.30 @ 20:09:45 Player: celerysam Result: Destroyed by G-47 Trooper with Particle Gun Performance ------------- Evolutions (2) 1000 Regions Visited (4) 800 Robots Destroyed (40) 200 Value Destroyed (1203) 1203 Prototype IDs (0) 0 Alien Tech Used (0) 0 Bonus (72) 72 TOTAL SCORE: 3275 Bonus ------- High Alert Combat Kills 72 Cogmind --------- Core Integrity 0/550 Matter 69/300 Energy 99/100 System Corruption 0% Temperature Cool (9) Movement Core (150) Ox2 Location -8/Materials Parts ------- > --- POWER (2) -------- (None) > --- PROPULSION (4) --- (None) > --- UTILITY (3) ------ Small Storage Unit > --- WEAPON (2) ------- Katana > --- INVENTORY (8) ---- Advanced Weight Redist. System Light Armor Plating Reflective Plating EM Pulse Cannon Gauss Rifle Makeshift Hammer Peak State ------------ > --- POWER ------------ (None) > --- PROPULSION ------- Aluminum Leg Aluminum Leg Improved Aluminum Leg Carbon-fiber Leg > --- UTILITY ---------- Small Storage Unit Advanced Weight Redist. System Improved Light Armor Plating > --- WEAPON ----------- Heavy Assault Rifle Grenade Launcher > --- INVENTORY -------- Light Ion Engine Hover Unit Hover Unit Light Armor Plating Gauss Rifle Grenade Launcher Makeshift Hammer [Rating: 18] Favorites ----------- Power Ion Engine Engine Ion Engine Propulsion Aluminum Leg Treads Light Treads Leg Aluminum Leg Wheel Wheel Hover Unit Hover Unit Flight Unit Flight Unit Utility Small Storage Unit Device Advanced Weight Redist. System Storage Small Storage Unit Protection Light Armor Plating Weapon Grenade Launcher Energy Gun Small Laser Ballistic Gun Heavy Assault Rifle Launcher Grenade Launcher Slashing Weapon Katana Build | -11 -10 -9 -9 -8 ------- Run | Yrd Mat Mat Min Mat Slots Evolved 4 | . . 2 . 2 Power 1 | . . . . 1 Propulsion 2 | . . 2 . . Utility 1 | . . . . 1 Weapon . | . . . . . Parts Attached 43 | 5 4 9 10 15 Power 4 | . 2 1 . 1 Engine 4 | . 2 1 . 1 Core . | . . . . . Reactor . | . . . . . Propulsion 24 | 2 2 4 7 9 Treads 4 | . . 2 . 2 Leg 10 | . . 2 6 2 Wheel 2 | 2 . . . . Hover 7 | . 2 . . 5 Flight 1 | . . . 1 . Utility 5 | 1 . 1 1 2 Device 1 | . . . . 1 Storage 1 | 1 . . . . Processor . | . . . . . Hackware . | . . . . . Protection 3 | . . 1 1 1 Artifact . | . . . . . Weapon 10 | 2 . 3 2 3 Energy Gun 2 | 1 . 1 . . Energy Cannon . | . . . . . Ballistic Gun 2 | 1 . . 1 . Ballistic Cannon . | . . . . . Launcher 5 | . . 2 1 2 Special Weapon . | . . . . . Impact Weapon . | . . . . . Slashing Weapon 1 | . . . . 1 Piercing Weapon . | . . . . . Special Melee Weapon . | . . . . . Unidentified Prototypes . | . . . . . Parts Lost 22 | . . 4 2 16 Power 3 | . . 1 . 2 Propulsion 11 | . . 1 1 9 Utility 2 | . . 1 . 1 Weapon 6 | . . 1 1 4 Highest Loss Streak 15 | . . 2 1 15 To Critical Strikes . | . . . . . Average Slot Usage (%) 86 | . 85 86 94 73 Engine 9 | . 14 5 11 6 Treads 9 | . . 16 12 1 Leg 22 | . . 19 29 21 Wheel 1 | . 14 . . . Hover 3 | . 14 5 . 5 Storage 10 | . 14 11 11 9 Protection 9 | . . 9 11 10 Energy Gun 5 | . 14 11 2 . Ballistic Gun 5 | . 14 . 4 7 Launcher 8 | . . 7 11 7 Peak Build Rating 18 | 5 6 10 12 18 Average Rating 9 | 2 5 8 10 13 On Entrance 6 | . 5 6 8 12 Naked Turns . | . . . . . Heaviest Build 22 | 8 13 21 19 22 Greatest Support 57 | 20 20 40 43 57 Greatest Overweight (x) 4 | . 4 2 . 2 Average Overweight (x) . | . . . . . Largest Inventory Capacity 8 | 8 8 8 8 8 Average Capacity 7 | 6 8 8 8 8 Most Carried 8 | 7 8 8 8 8 Average Carried 6 | 4 6 6 6 7 Final Capacity 8 | 8 8 8 8 8 Final Carried 8 | 6 7 7 8 6 Class Distribution -------------------- 100% | Mutant Dominant Class ---------------- Mutant | -10/Materials Mutant | -9/Materials Mutant | -9/Mines Mutant | -8/Materials Resources | -11 -10 -9 -9 -8 ----------- Run | Yrd Mat Mat Min Mat Matter Collected 823 | 208 92 127 264 132 Remotely . | . . . . . Salvage Created 1037 | . 210 348 182 297 Parts 71 | . 10 24 18 19 Haulers Intercepted . | . . . . . Recyclers Shooed 1 | . . 1 . . Parts Field Recycled . | . . . . . Retrieved Matter . | . . . . . Parts Self-Destructed . | . . . . . Prevented . | . . . . . Kills | -11 -10 -9 -9 -8 ------- Run | Yrd Mat Mat Min Mat Combat Hostiles Destroyed 32 | . 4 13 10 5 Guns 7 | . 3 2 1 1 AOE 25 | . 1 11 9 4 Classes Destroyed 10 | . 2 4 1 3 Worker 3 | . . 1 . 2 Builder 1 | . . 1 . . Tunneler 1 | . . . 1 . Recycler 1 | . . . . 1 Watcher 2 | . 1 1 . . Swarmer 7 | . . 3 4 . Grunt 18 | . 4 7 6 1 Brawler 1 | . . . . 1 Sentry 3 | . . 3 . . Hunter 3 | . . . . 3 Best Kill Streak 9 | . 4 7 9 3 Combat Bots Only 8 | . 4 5 8 2 Max Kills in Single Turn 2 | . 1 2 2 1 Gunslinging . | . . . . . Exploded 2 | . 1 2 2 1 Melee . | . . . . . Uniques/NPCs Destroyed . | . . . . . Combat | -11 -10 -9 -9 -8 -------- Run | Yrd Mat Mat Min Mat Hostile Shots Fired 261 | . 14 53 29 165 Missed 88 | . 6 17 11 54 Damage Taken 2762 | . 141 564 315 1742 Core 733 | . 86 38 47 562 Absorbed by Shields . | . . . . . Core Remaining (%) 81 | 100 65 . 78 . Volleys Fired 70 | . 10 23 19 18 Largest 2 | . 2 2 2 2 Hottest 80 | . 60 80 70 53 Shots Fired 121 | . 20 41 28 32 Gun 75 | . 20 26 11 18 Cannon . | . . . . . Launcher 46 | . . 15 17 14 Special . | . . . . . Kinetic 32 | . 10 . 4 18 Thermal 30 | . . 23 7 . Explosive 46 | . . 15 17 14 Electromagnetic 13 | . 10 3 . . Robot Hit Streak 17 | . 17 13 8 8 Robot Miss Streak 2 | . . 2 1 2 Penetration Max . | . . . . . Secondary Targets 1 | . 1 . . . Max Gunslinging Chain 1 | . 1 . . . Shots Hit Robots 75 | . 17 25 11 22 Core Hits 76 | . 9 28 18 21 Critical Kills . | . . . . . Critical Parts Destroyed . | . . . . . Critical Strikes . | . . . . . Melee Attacks 2 | . . . . 2 Impact . | . . . . . Slashing 2 | . . . . 2 Piercing . | . . . . . Sneak Attacks . | . . . . . Combat Hostiles . | . . . . . Follow-up Attacks . | . . . . . Damage Inflicted 2894 | . 234 1074 633 953 Guns 611 | . 187 188 53 183 Cannons . | . . . . . Explosions 2245 | . 47 886 580 732 Melee 32 | . . . . 32 Ramming 6 | . . . . 6 Kinetic 285 | . 49 . 53 183 Thermal 214 | . 47 167 . . Explosive 2198 | . . 886 580 732 Electromagnetic 159 | . 138 21 . . Impact . | . . . . . Slashing 32 | . . . . 32 Piercing . | . . . . . Highest Corruption . | . . . . . Average Corruption . | . . . . . Corruption Purged . | . . . . . Corruption Blocked . | . . . . . Overload Shots . | . . . . . Overflow Damage 73 | . . 24 25 24 Projectiles . | . . . . . Explosions 65 | . . 24 25 16 Melee 8 | . . . . 8 Knockbacks . | . . . . . Impact . | . . . . . Kinetic . | . . . . . Secondary . | . . . . . Self-Inflicted Damage 364 | . 53 84 113 114 Shots 16 | . 1 7 4 4 Rammed 1 | . . . . 1 Targets Rammed 1 | . . . . 1 Kicked . | . . . . . Crushed . | . . . . . Highest Temperature 121 | . 66 121 18 33 Average Temperature 30 | . 33 44 6 14 Received Heat Transfer 1074 | . 48 252 99 675 Siege Activations . | . . . . . Robots Corrupted . | . . . . . Combat Hostiles . | . . . . . Parts Fried . | . . . . . Impact Corruptions . | . . . . . Robots Melted . | . . . . . Combat Hostiles . | . . . . . Parts Melted . | . . . . . Heat Transferred 425 | . 50 375 . . Parts Sabotaged . | . . . . . Parts Stolen . | . . . . . Parts Stripped . | . . . . . Power Chain Reactions 1 | . 1 . . . Alert | -11 -10 -9 -9 -8 ------- Run | Yrd Mat Mat Min Mat Peak Influence 565 | . 143 565 486 353 Initial 220 | . . 59 220 111 Average 222 | . 40 238 275 228 Maximum Alert Level 2 | . . 2 2 1 Low Security (%) 34 | 100 100 60 . 38 Level 1 55 | . . 6 90 61 Level 2 10 | . . 33 9 . Level 3 . | . . . . . Level 4 . | . . . . . Level 5 . | . . . . . High Security . | . . . . . Max Security . | . . . . . Squads Dispatched 8 | . 2 2 . 4 Investigation 2 | . 1 1 . . Extermination . | . . . . . Reinforcement 6 | . 1 1 . 4 Assault . | . . . . . Garrison . | . . . . . Intercept . | . . . . . Searches Triggered . | . . . . . Construction Impeded 2 | . . 1 . 1 Haulers Reinforced . | . . . . . Active Scanning Responses . | . . . . . Cargo Convoy Interrupts . | . . . . . Stealth | -11 -10 -9 -9 -8 --------- Run | Yrd Mat Mat Min Mat Distress Signals 5 | . . 1 1 3 Communications Jammed . | . . . . . Distress Signals . | . . . . . Times Spotted 53 | . 6 14 10 23 Peak Tracking Total 12 | . 2 4 4 12 Tactical Retreats 2 | . . . . 2 Traps | -11 -10 -9 -9 -8 ------- Run | Yrd Mat Mat Min Mat Traps Triggered 2 | . 1 1 . . Indirectly . | . . . . . Trap Hack Attempts . | . . . . . Triggered . | . . . . . Disarmed . | . . . . . Reprogrammed . | . . . . . Reused . | . . . . . Traps Extracted . | . . . . . Installed . | . . . . . Triggered . | . . . . . Machines | -11 -10 -9 -9 -8 ---------- Run | Yrd Mat Mat Min Mat Machines Disabled 8 | . . 4 . 4 Max in Single Turn 3 | . . 3 . 1 Machines Repaired . | . . . . . Machines Dismantled . | . . . . . Machines Sabotaged . | . . . . . Overloaded Fab Kills . | . . . . . Hacking | -11 -10 -9 -9 -8 --------- Run | Yrd Mat Mat Min Mat Machines Accessed 2 | . 1 . . 1 Terminals 2 | . 1 . . 1 Fabricators . | . . . . . Repair Stations . | . . . . . Recycling Units . | . . . . . Scanalyzers . | . . . . . Garrison Access . | . . . . . Total Hacks 3 | . 2 . . 1 Successful 1 | . . . . 1 Failed 2 | . 2 . . . Catastrophic . | . . . . . Database Lockouts . | . . . . . Manual 2 | . 2 . . . Terminals 3 | . 2 . . 1 Fabricators . | . . . . . Repair Stations . | . . . . . Recycling Units . | . . . . . Scanalyzers . | . . . . . Garrison Access . | . . . . . Terminal Hacks 1 | . . . . 1 Record 1 | . . . . 1 Fabricator Hacks . | . . . . . Repair Station Hacks . | . . . . . Recycling Unit Hacks . | . . . . . Scanalyzer . | . . . . . Garrison Access Hacks . | . . . . . Unauthorized Hacks . | . . . . . Terminals . | . . . . . Fabricators . | . . . . . Repair Stations . | . . . . . Recycling Units . | . . . . . Scanalyzers . | . . . . . Garrison Access . | . . . . . Data Cores Recovered . | . . . . . Used . | . . . . . Hacking Detections 1 | . 1 . . . Full Trace Events . | . . . . . Feedback Events . | . . . . . Feedback Blocked . | . . . . . Robot Schematics Acquired . | . . . . . Robots Built . | . . . . . Authchips . | . . . . . Time . | . . . . . Total Robot Build Rating . | . . . . . Part Schematics Acquired . | . . . . . Parts Built . | . . . . . Authchips . | . . . . . Time . | . . . . . Total Part Build Rating . | . . . . . Parts Repaired . | . . . . . Time . | . . . . . Parts Recycled . | . . . . . Recycled Matter . | . . . . . Retrieved Matter . | . . . . . Retrieved Components . | . . . . . Parts Scanalyzed . | . . . . . Part Schematics Acquired . | . . . . . Parts Damaged . | . . . . . Bothacking | -11 -10 -9 -9 -8 ------------ Run | Yrd Mat Mat Min Mat Used RIF Installer . | . . . . . Robots Hacked . | . . . . . Non-combat . | . . . . . Combat . | . . . . . Robot Hacks Applied . | . . . . . Relay Couplers Released . | . . . . . Fabnet Peak Effective % . | . . . . . Robots Rewired . | . . . . . Allies Hacked . | . . . . . Hacks Repelled . | . . . . . Allies | -11 -10 -9 -9 -8 -------- Run | Yrd Mat Mat Min Mat Total Allies . | . . . . . Largest Group . | . . . . . Highest-Rated Group . | . . . . . Highest-Rated Ally . | . . . . . Total Orders . | . . . . . Ally Attacks . | . . . . . Total Damage . | . . . . . Kills . | . . . . . Allies Corrupted . | . . . . . Allies Melted . | . . . . . Intel | -11 -10 -9 -9 -8 ------- Run | Yrd Mat Mat Min Mat Robot Analysis Total . | . . . . . Derelict Logs Recovered . | . . . . . Drone Launches . | . . . . . Drone Recoveries . | . . . . . Exploration | -11 -10 -9 -9 -8 ------------- Run | Yrd Mat Mat Min Mat Turns Passed 1303 | 46 141 232 567 317 Spaces Moved 849 | 43 151 111 322 222 Core 45 | 12 1 . . 32 Treads 223 | . . 75 144 4 Legs 304 | . . . 178 126 Wheels 104 | 31 73 . . . Hover 173 | . 77 36 . 60 Flight . | . . . . . Fastest Speed 48 | 50 56 56 120 48 Average Speed 111 | 71 68 135 137 98 Slowest Speed 250 | 80 250 200 160 190 Overloaded Moves . | . . . . . Propulsion Burnouts . | . . . . . Robots Hopped . | . . . . . Cave-ins Triggered . | . . . . . Exploration Rate (%) 31 | 4 34 19 57 41 Regions Visited 4 Branch Regions 1 Pre-discovered Areas . | . . . . . Known Exits Taken . | . . . . . Unknown Exits Taken 4 | 1 1 1 1 . Scrap Searched 1 | . . . 1 . Spaces Dug . | . . . . . Terrain Destroyed 281 | . 6 99 101 75 Melee . | . . . . . Projectile . | . . . . . AOE 281 | . 6 99 101 75 Terrain Rammed . | . . . . . Walls Destroyed . | . . . . . Machines Disabled . | . . . . . Actions | -11 -10 -9 -9 -8 --------- Run | Yrd Mat Mat Min Mat Total 1085 | 57 169 152 420 287 Wait 68 | . . . 54 14 Move 845 | 42 150 110 321 222 Hop . | . . . . . Pick Up 34 | 10 3 7 6 8 Fast Attach 11 | 1 1 2 3 4 Attach 24 | 4 2 6 3 9 Detach 2 | . . . 1 1 Swap 8 | . 1 1 4 2 Drop 20 | . 2 3 9 6 Fire 70 | . 10 23 19 18 Melee 2 | . . . . 2 Ram 1 | . . . . 1 Kick . | . . . . . Crush . | . . . . . Escape Stasis . | . . . . . Rewire . | . . . . . Trap . | . . . . . Miscellaneous . | . . . . . Route ------- -11/Scrapyard -10/Materials -9/Materials -9/Mines -8/Materials History --------- Turn | Location | Event 22 | -11/Scrapyard | Discovered new exit (range 15) 47 | -11/Scrapyard | Entered Materials 167 | -10/Materials | Discovered new exit (range 16) 188 | -10/Materials | Entered another Materials area 188 | -9/Materials | Evolved 2 slots: Propulsion x2 302 | -9/Materials | Build established: Mutant 394 | -9/Materials | Discovered new exit (range 11) 420 | -9/Materials | Entered Mines 460 | -9/Mines | Excavation squad dispatched 460 | -9/Mines | A large section of the Mines collapsed 546 | -9/Mines | A weapon hastily lodged in a ceiling crevice suddenly fell to the ground 710 | -9/Mines | Excavation squad dispatched 798 | -9/Mines | Destroyed 8 combat bots 893 | -9/Mines | Discovered new exit (range 3) 987 | -9/Mines | Entered Materials 987 | -8/Materials | Evolved 2 slots: Power x1, Utility x1 1284 | -8/Materials | Core integrity fell below 50% 1293 | -8/Materials | Core integrity fell below 20% 1304 | -8/Materials | Destroyed by G-47 Trooper with Particle Gun Last Messages --------------- 01250_ K-01 Serf collects debris. 01251_ Penetrated by Slug. 01251_ Acquired 21 matter. 01253_ Hover Unit destroyed. 01255_ Lgt. Ion Engine destroyed. 01256_ Slug penetrates Wall. 01260_ Acquired Reflective Plating. 01263_ Acquired Katana. 01268_ Grenade Launcher destroyed. 01275_ Processing Tank disabled. 01282_ Lgt. Treads destroyed. 01282_ Destroyed Imp. Heat Sink. 01283_ Slug penetrates Wall. 01284_ Dropped Lgt. Treads. 01286_ Penetrated by Slug. 01288_ Critical hit (Burn: +37). 01289_ Penetrated by Slug. 01295_ Slug penetrates Wall. 01298_ Electrolysis Chamber disabled. 01301_ Slug penetrates Wall. Map ----- +----------------------------------------------------+ | # #????????????????????????? | | # """ #????????????????????????? | | # """ #????????????????????????? | | "" # """ #######??????????????????? | | "" ""?# ## ############???????? | | "" S""?#! # ## ! ! #???????? | | "" ?# # ## #???????? | | =#######/ # ##! " " #???????? | | %/ ## ! "" #???????? | | ! / "##] !! """ ##??????? | | ####### % #/ T## "" #??????? | | ????????# "## "" ##??????? | | ????????# # ## = #???????? | | ?????##### ####/#########???????? | | ????# Y #?????????????? | | ????# T hg #?????????????? | | ????# ### ####g#####???????????? | | ????# ???## #### #???????????? | | ????#??? ?## Y T #???????????? | | ???????+ # = ] #???????????? | | ???????# ## #???????????? | | ???????# * ## #???????????? | | ???????# ## "" #???????????? | | ???????# ## """ #???????????? | | ???????# ## """ #???????????? | | ???????# ! ## ! @#???????????? | | ???????# ###########???????????? | | ???????##########?????????????????????? | | ??????????????????????????????????????? | | | | | | | | | | | | | | | | | | | | | | | | | | | | | | | | | | | | | | | | | | | +----------------------------------------------------+ Best States ------------- Heat Dissipation 31 Energy Generation 10 Energy Capacity 250 Matter Stores 300 Matter Capacity 300 Sight Range 16 Terrain Scan Density 10 Additional Mass Support 9 Armor Coverage 300 Evasion (%) 55 Recoil Reduction 2 Item Schematics ----------------- None Robot Schematics ------------------ None Fabricated ------------ Nothing Alien Tech Used ----------------- None Achievements -------------- None Challenges ------------ None Game ------ Seed SurgeRecoilSlayer Manual? 0 Play Time 00:21:43 Cumulative 138.6 hours Start 2024.08.30 @ 19:43:05 End 2024.08.30 @ 20:09:45 Sessions 1 Manual Loads 0 Difficulty Rogue Special Mode None Game No. 197 Rogue 197 Adventurer 0 Explorer 0 Win Type - Total 0 Types 0/0/0/0/0/0/0/0/0 Lore% 31 Gallery% 58 Achievement% 40 Wizard Run 0 Options --------- Layout 0 ASCII 0 Keyboard 0 Movement Mouse Keybinds 0 Fullscreen 1 Font 24/Smallcaps Map View 76x50 Zoom Use 0% Tactical HUD 1 Map Filters NONE Filters NONE Steam 1 RUN: 420acfb0-d022-42ee-8c2d-50271644af99